Cogmind - Beta 13 @@@ ROGUE MODE // 2024.04.22 @ 13:53:41 Player: Powerlich_soros Result: Self-destructed Performance ------------- Evolutions (1) 500 Regions Visited (4) 800 Robots Destroyed (14) 70 Value Destroyed (351) 351 Prototype IDs (2) 40 Alien Tech Used (0) 0 Bonus (93) 93 TOTAL SCORE: 1854 Bonus ------- Follower Combat Kills 93 Cogmind --------- Core Integrity 326/400 Matter 300/300 Energy 71/125 System Corruption 0% Temperature Critical (610) Movement Flying (114) Ox1 Location -9/Storage Parts ------- > --- POWER (1) -------- Light Ion Engine > --- PROPULSION (4) --- Flight Unit Flight Unit Flight Unit > --- UTILITY (2) ------ Small Storage Unit > --- WEAPON (2) ------- Improved Medium Laser Advanced Beam Cannon > --- INVENTORY (8) ---- Ion Engine Light Ion Engine Improved Aluminum Leg EM Shotgun Small Laser Particle Gun Improved Medium Laser Peak State ------------ > --- POWER ------------ Light Ion Engine > --- PROPULSION ------- Flight Unit Flight Unit Flight Unit Flight Unit > --- UTILITY ---------- Small Storage Unit > --- WEAPON ----------- Improved Medium Laser Advanced Beam Cannon > --- INVENTORY -------- Ion Engine Light Ion Engine Flight Unit EM Shotgun Small Laser Particle Gun Improved Medium Laser [Rating: 13] Favorites ----------- Power Light Ion Engine Engine Light Ion Engine Propulsion Flight Unit Wheel Wheel Flight Unit Flight Unit Utility Small Storage Unit Storage Small Storage Unit Weapon Light Assault Rifle Energy Gun Particle Gun Energy Cannon Advanced Beam Cannon Ballistic Gun Light Assault Rifle Build | -11 -10 -10 -9 -9 ------- Run | Yrd Mat Min Mat Sto Slots Evolved 2 | . . . 2 . Power . | . . . . . Propulsion 2 | . . . 2 . Utility . | . . . . . Weapon . | . . . . . Parts Attached 21 | 6 2 6 5 2 Power 2 | 1 . . 1 . Engine 2 | 1 . . 1 . Core . | . . . . . Reactor . | . . . . . Propulsion 9 | 2 2 2 3 . Treads . | . . . . . Leg . | . . . . . Wheel 4 | 2 2 . . . Hover . | . . . . . Flight 5 | . . 2 3 . Utility 1 | 1 . . . . Device . | . . . . . Storage 1 | 1 . . . . Processor . | . . . . . Hackware . | . . . . . Protection . | . . . . . Artifact . | . . . . . Weapon 9 | 2 . 4 1 2 Energy Gun 5 | . . 3 1 1 Energy Cannon 1 | . . . . 1 Ballistic Gun 3 | 2 . 1 . . Ballistic Cannon . | . . . . . Launcher . | . . . . . Special Weapon . | . . . . . Impact Weapon . | . . . . . Slashing Weapon . | . . . . . Piercing Weapon . | . . . . . Special Melee Weapon . | . . . . . Unidentified Prototypes 2 | . . . . 2 Parts Lost 11 | . 2 7 1 1 Power 1 | . . 1 . . Propulsion 6 | . 2 2 1 1 Utility . | . . . . . Weapon 4 | . . 4 . . Highest Loss Streak 6 | . 2 6 1 1 To Critical Strikes 1 | . . 1 . . Average Slot Usage (%) 77 | . 78 64 77 86 Engine 11 | . 14 8 7 11 Wheel 11 | . 21 15 . . Flight 17 | . . 1 42 42 Storage 12 | . 14 14 11 11 Energy Gun 7 | . . 10 15 11 Energy Cannon 2 | . . . . 10 Ballistic Gun 14 | . 28 15 . . Naked Turns . | . . . . . Heaviest Build 15 | 11 11 11 14 15 Greatest Support 20 | 20 20 20 16 16 Greatest Overweight (x) 3 | . 3 2 . . Average Overweight (x) . | . . . . . Largest Inventory Capacity 8 | 8 8 8 8 8 Average Capacity 7 | 6 8 8 8 8 Most Carried 8 | 2 7 8 6 7 Average Carried 4 | 1 3 7 4 6 Final Capacity 8 | 8 8 8 8 8 Final Carried 7 | 2 7 7 4 7 Class Distribution -------------------- 55% | Mutant 40% | Scavenger-Sprinter 3% | Scavenger-Mutant Dominant Class ---------------- Mutant | -10/Materials Mutant | -10/Mines Scavenger-Sprinter | -9/Materials Scavenger-Sprinter | -9/Storage Resources | -11 -10 -10 -9 -9 ----------- Run | Yrd Mat Min Mat Sto Matter Collected 461 | 179 65 132 65 20 Remotely . | . . . . . Salvage Created 411 | . 65 212 84 50 Parts 30 | . 10 13 3 4 Haulers Intercepted . | . . . . . Recyclers Shooed . | . . . . . Parts Field Recycled . | . . . . . Retrieved Matter . | . . . . . Parts Self-Destructed . | . . . . . Prevented . | . . . . . Kills | -11 -10 -10 -9 -9 ------- Run | Yrd Mat Min Mat Sto Combat Hostiles Destroyed 13 | . 3 7 2 1 Guns 12 | . 3 7 2 . Cannons 1 | . . . . 1 Classes Destroyed 4 | . 2 1 1 . Builder 1 | . 1 . . . Swarmer 6 | . 3 3 . . Grunt 5 | . . 4 1 . Sentry 2 | . . . 1 1 Best Kill Streak 4 | . 4 3 2 1 Combat Bots Only 3 | . 3 3 2 1 Max Kills in Single Turn 2 | . 1 2 1 1 Gunslinging . | . . . . . Exploded . | . . . . . Melee . | . . . . . Uniques/NPCs Destroyed . | . . . . . Combat | -11 -10 -10 -9 -9 -------- Run | Yrd Mat Min Mat Sto Hostile Shots Fired 140 | . 41 66 17 16 Missed 31 | . 8 11 8 4 Damage Taken 1227 | 3 258 661 133 172 Core 280 | . 32 174 35 39 Absorbed by Shields . | . . . . . Core Remaining (%) 58 | 100 . 17 . . Volleys Fired 58 | . 17 24 5 12 Largest 2 | . 2 2 2 2 Hottest 124 | . 40 105 110 124 Shots Fired 101 | . 25 42 10 24 Gun 89 | . 25 42 10 12 Cannon 12 | . . . . 12 Launcher . | . . . . . Special . | . . . . . Kinetic 50 | . 25 25 . . Thermal 46 | . . 17 5 24 Explosive . | . . . . . Electromagnetic 5 | . . . 5 . Robot Hit Streak 12 | . 6 12 11 6 Robot Miss Streak 6 | . 6 6 1 3 Penetration Max . | . . . . . Secondary Targets 2 | . . 2 . . Max Gunslinging Chain 1 | . . 1 . . Shots Hit Robots 66 | . 12 31 9 14 Core Hits 25 | . 4 13 5 3 Critical Kills . | . . . . . Critical Parts Destroyed . | . . . . . Critical Strikes 1 | . . 1 . . Burn 1 | . . 1 . . Melee Attacks . | . . . . . Impact . | . . . . . Slashing . | . . . . . Piercing . | . . . . . Sneak Attacks . | . . . . . Combat Hostiles . | . . . . . Follow-up Attacks . | . . . . . Damage Inflicted 922 | 6 154 374 125 263 Guns 773 | . 154 374 125 120 Cannons 143 | . . . . 143 Explosions . | . . . . . Melee . | . . . . . Ramming 6 | 6 . . . . Kinetic 338 | . 154 184 . . Thermal 510 | . . 190 57 263 Explosive . | . . . . . Electromagnetic 68 | . . . 68 . Impact . | . . . . . Slashing . | . . . . . Piercing . | . . . . . Highest Corruption . | . . . . . Average Corruption . | . . . . . Corruption Purged . | . . . . . Corruption Blocked . | . . . . . Overload Shots . | . . . . . Overflow Damage . | . . . . . Projectiles . | . . . . . Explosions . | . . . . . Melee . | . . . . . Knockbacks . | . . . . . Impact . | . . . . . Kinetic . | . . . . . Secondary . | . . . . . Self-Inflicted Damage 3 | 3 . . . . Shots . | . . . . . Rammed 1 | 1 . . . . Targets Rammed 1 | 1 . . . . Kicked . | . . . . . Crushed . | . . . . . Highest Temperature 610 | . . 198 171 610 Average Temperature 108 | . . 81 88 140 Received Heat Transfer 495 | . 6 333 39 117 Effects 6 | . . . . 6 Shutdowns 1 | . . . . 1 Energy Bleed 2 | . . . . 2 Interference 1 | . . . . 1 Short Circuit 1 | . . . . 1 Damage (minor) 1 | . . . . 1 Siege Activations . | . . . . . Robots Corrupted . | . . . . . Combat Hostiles . | . . . . . Parts Fried . | . . . . . Impact Corruptions . | . . . . . Robots Melted . | . . . . . Combat Hostiles . | . . . . . Parts Melted 3 | . . 1 2 . Heat Transferred 1136 | . . 508 148 480 Parts Sabotaged . | . . . . . Parts Stolen . | . . . . . Parts Stripped . | . . . . . Power Chain Reactions . | . . . . . Alert | -11 -10 -10 -9 -9 ------- Run | Yrd Mat Min Mat Sto Peak Influence 203 | . 75 173 146 203 Initial 66 | . . 28 66 61 Average 74 | . 27 112 94 132 Maximum Alert Level 1 | . . . . 1 Low Security (%) 97 | 100 100 100 100 88 Level 1 2 | . . . . 11 Level 2 . | . . . . . Level 3 . | . . . . . Level 4 . | . . . . . Level 5 . | . . . . . High Security . | . . . . . Max Security . | . . . . . Squads Dispatched 4 | . 1 . 1 2 Investigation 2 | . 1 . 1 . Extermination . | . . . . . Reinforcement . | . . . . . Assault 2 | . . . . 2 Garrison . | . . . . . Intercept . | . . . . . Searches Triggered . | . . . . . Construction Impeded . | . . . . . Haulers Reinforced . | . . . . . Active Scanning Responses . | . . . . . Cargo Convoy Interrupts . | . . . . . Stealth | -11 -10 -10 -9 -9 --------- Run | Yrd Mat Min Mat Sto Distress Signals 1 | . 1 . . . Communications Jammed . | . . . . . Distress Signals . | . . . . . Times Spotted 29 | . 6 7 4 12 Peak Tracking Total 10 | . 3 4 2 10 Tactical Retreats 2 | . . 1 . 1 Traps | -11 -10 -10 -9 -9 ------- Run | Yrd Mat Min Mat Sto Traps Triggered . | . . . . . Indirectly . | . . . . . Trap Hack Attempts . | . . . . . Triggered . | . . . . . Disarmed . | . . . . . Reprogrammed . | . . . . . Reused . | . . . . . Traps Extracted . | . . . . . Installed . | . . . . . Triggered . | . . . . . Machines | -11 -10 -10 -9 -9 ---------- Run | Yrd Mat Min Mat Sto Machines Disabled 1 | . 1 . . . Max in Single Turn 1 | . 1 . . . Machines Repaired . | . . . . . Machines Dismantled . | . . . . . Machines Sabotaged . | . . . . . Overloaded Fab Kills . | . . . . . Hacking | -11 -10 -10 -9 -9 --------- Run | Yrd Mat Min Mat Sto Machines Accessed 6 | . 2 . 1 3 Terminals 5 | . 2 . 1 2 Fabricators . | . . . . . Repair Stations . | . . . . . Recycling Units 1 | . . . . 1 Scanalyzers . | . . . . . Garrison Access . | . . . . . Total Hacks 14 | . 2 . 4 8 Successful 7 | . 1 . 2 4 Failed 7 | . 1 . 2 4 Catastrophic 2 | . 1 . . 1 Database Lockouts . | . . . . . Manual 11 | . 2 . 4 5 Terminals 11 | . 2 . 4 5 Fabricators . | . . . . . Repair Stations . | . . . . . Recycling Units 3 | . . . . 3 Scanalyzers . | . . . . . Garrison Access . | . . . . . Terminal Hacks . | . . . . . Fabricator Hacks . | . . . . . Repair Station Hacks . | . . . . . Recycling Unit Hacks 3 | . . . . 3 Report Inventory 2 | . . . . 2 Retrieve Components 1 | . . . . 1 Scanalyzer . | . . . . . Garrison Access Hacks . | . . . . . Unauthorized Hacks 4 | . 1 . 2 1 Terminals 4 | . 1 . 2 1 Assimilate 1 | . . . . 1 Botnet 1 | . . . 1 . Search 2 | . 1 . 1 . Fabricators . | . . . . . Repair Stations . | . . . . . Recycling Units . | . . . . . Scanalyzers . | . . . . . Garrison Access . | . . . . . Data Cores Recovered . | . . . . . Used . | . . . . . Hacking Detections 3 | . 1 . . 2 Full Trace Events . | . . . . . Feedback Events . | . . . . . Feedback Blocked . | . . . . . Robot Schematics Acquired . | . . . . . Robots Built . | . . . . . Authchips . | . . . . . Time . | . . . . . Total Robot Build Rating . | . . . . . Part Schematics Acquired . | . . . . . Parts Built . | . . . . . Authchips . | . . . . . Time . | . . . . . Total Part Build Rating . | . . . . . Parts Repaired . | . . . . . Time . | . . . . . Parts Recycled . | . . . . . Recycled Matter . | . . . . . Retrieved Matter . | . . . . . Retrieved Components 2 | . . . . 2 Parts Scanalyzed . | . . . . . Part Schematics Acquired . | . . . . . Parts Damaged . | . . . . . Bothacking | -11 -10 -10 -9 -9 ------------ Run | Yrd Mat Min Mat Sto Used RIF Installer . | . . . . . Robots Hacked . | . . . . . Non-combat . | . . . . . Combat . | . . . . . Robot Hacks Applied . | . . . . . Relay Couplers Released . | . . . . . Fabnet Peak Effective % . | . . . . . Robots Rewired . | . . . . . Allies Hacked . | . . . . . Hacks Repelled . | . . . . . Allies | -11 -10 -10 -9 -9 -------- Run | Yrd Mat Min Mat Sto Total Allies 3 | . . . . 3 Largest Group 2 | . . . . 2 Highest-Rated Group 62 | . . . . 62 Highest-Rated Ally 31 | . . . . 31 Total Orders . | . . . . . Ally Attacks 7 | . . . . 7 Total Damage 126 | . . . . 126 Kills 3 | . . . . 3 Allies Corrupted . | . . . . . Allies Melted . | . . . . . Intel | -11 -10 -10 -9 -9 ------- Run | Yrd Mat Min Mat Sto Robot Analysis Total . | . . . . . Derelict Logs Recovered 1 | . . 1 . . Drone Launches . | . . . . . Drone Recoveries . | . . . . . Exploration | -11 -10 -10 -9 -9 ------------- Run | Yrd Mat Min Mat Sto Turns Passed 631 | 50 234 121 84 142 Spaces Moved 758 | 48 194 59 161 296 Core 21 | 1 13 7 . . Treads . | . . . . . Legs . | . . . . . Wheels 268 | 47 181 40 . . Hover . | . . . . . Flight 469 | . . 12 161 296 Fastest Speed 31 | 50 80 37 31 31 Average Speed 52 | 79 88 79 31 31 Slowest Speed 200 | 80 200 150 31 31 Overloaded Moves . | . . . . . Propulsion Burnouts . | . . . . . Robots Hopped 6 | . . . . 6 Cave-ins Triggered . | . . . . . Exploration Rate (%) 18 | 3 27 10 14 36 Regions Visited 4 Branch Regions 2 Pre-discovered Areas . | . . . . . Known Exits Taken . | . . . . . Unknown Exits Taken 4 | 1 1 1 1 . Scrap Searched . | . . . . . Spaces Dug . | . . . . . Terrain Destroyed . | . . . . . Melee . | . . . . . Projectile . | . . . . . AOE . | . . . . . Terrain Rammed . | . . . . . Walls Destroyed . | . . . . . Machines Disabled . | . . . . . Actions | -11 -10 -10 -9 -9 --------- Run | Yrd Mat Min Mat Sto Total 881 | 56 232 93 183 317 Wait 33 | . 15 . 12 6 Move 743 | 48 193 58 160 284 Hop 6 | . . . . 6 Pick Up 15 | 2 5 4 1 3 Fast Attach 12 | 6 2 1 1 2 Attach 9 | . . 5 4 . Detach 3 | . . 1 . 2 Swap . | . . . . . Drop 2 | . . . . 2 Fire 58 | . 17 24 5 12 Melee . | . . . . . Ram . | . . . . . Kick . | . . . . . Crush . | . . . . . Escape Stasis . | . . . . . Rewire . | . . . . . Trap . | . . . . . Miscellaneous . | . . . . . Route ------- -11/Scrapyard -10/Materials -10/Mines -9/Materials (discovered 2 exits: Min / *Sto) -9/Storage History --------- Turn | Location | Event 16 | -11/Scrapyard | Discovered new exit (range 16) 51 | -11/Scrapyard | Entered Materials 161 | -10/Materials | Discovered new exit (range 15) 285 | -10/Materials | Entered Mines 325 | -10/Mines | Build established: Mutant 368 | -10/Mines | Core integrity fell below 50% 379 | -10/Mines | Core integrity fell below 20% 395 | -10/Mines | Lost 6 parts (1p2n3w) 404 | -10/Mines | Discovered new exit (range 6) 406 | -10/Mines | Entered Materials 406 | -9/Materials | Evolved 2 slots: Propulsion x2 407 | -9/Materials | Identified exit to Mines 447 | -9/Materials | Discovered new exit (range 16) 490 | -9/Materials | Entered Storage 495 | -9/Storage | Met a pair of Derelict thieves 632 | -9/Storage | Self-destructed Last Messages --------------- 00571_ Y-45 Defender destroyed. 00572_ Technician 2a reports 0b10 security level has risen to 1. 00576_ Acquired 20 matter. 00583_ Connecting with Terminal... 00588_ Technician 2a reports 0b10 security level has lowered to 0. 00592_ K-01 Serf collects debris. 00594_ Technician 2a reveals location of EMP Trap. 00595_ K-01 Serf collects debris. 00595_ Technician 2a reveals location of EMP Trap. 00619_ Flight Unit destroyed. 00624_ Critical hit (Burn: +37). 00626_ Power failure, Lgt. Ion Engine shutdown. 00626_ Overheating: Energy bleed (-17). 00628_ Overheating: Sml. Storage Unit damaged (-31). 00629_ Overheating: Energy bleed (-19). 00631_ Overheating: System interference. 00631_ Imp. Medium Laser temporarily disabled. 00632_ Adv. Beam Cannon broken. 00632_ Overheating: Short circuit. Map ----- +----------------------------------------------------+ | ???# ##?# ^ T ^ ### ### | | ???# # =[### !!% | | ???# # !%= ### ### | | ???# # !### """"" #?## ##?# | | ???# #####?## """"" #??# #### | | ???# #??##### """"" #??# + | | ???# ### ! #^ #??# #### | | ???# +* # #??# #??# | | ???# # ! # """""^ #??# #??# | | ???# / # """"" #??# #??# | | ???# # # """"" #??# #??# | | ???# # # #??# #??# | | ???# #? =# #??# #??# | | ???# #?? !# #??#+#??# | | ???# #??? # #? ?? | | ???# ###### ######## ## | | ???# ## ???????# ## | | ???# ## ########?# # | | ???# ## # #?? ## """"" | | ???# ## # ### ## """"" | | ???# # + ## """"" | | ???# o + ######## | | ???# # #??????##+##??? | | ???# # #?????????????? | | ???# gm########?????????????? | | ???# @gggi a ???????? | | ???#^^^^######## #?????????? | | ???# #?????????? #?????????? | | ???# #??????????????#?????????? | | ???#+## #????????????????????????? | | ??????# #????????????????????????? | | ??????+ +????????????????????????? | | ??????# #????????????????????????? | | ??????? #????????????????????????? | | ??????? #????????????????????????? | | ??????? #????????????????????????? | | ??????? ?????????????????????????? | | ??????? ?????????????????????????? | | ??????? ?????????????????????????? | | ?????????????????????????????????? | | ?????????????????????????????????? | | ?????????????????????????????????? | | ?????????????????????????????????? | | ?????????????????????????????????? | | ?????????????????????????????????? | | ?????????????????????????????????? | | ?????????????????????????????????? | | ?????????????????????????????????? | | ?????????????????????????????????? | | ?????????????????????????????????? | +----------------------------------------------------+ Best States ------------- Heat Dissipation 28 Energy Generation 10 Energy Capacity 125 Matter Stores 300 Matter Capacity 300 Sight Range 16 Terrain Scan Density 10 Evasion (%) 63 Item Schematics ----------------- None Robot Schematics ------------------ None Fabricated ------------ Nothing Alien Tech Used ----------------- None Achievements -------------- None Challenges ------------ None Game ------ Seed AbsorptionBurstChip Manual? 0 Play Time 00:14:34 Cumulative 23.4 hours Start 2024.04.22 @ 13:40:55 End 2024.04.22 @ 13:53:41 Sessions 1 Manual Loads 0 Difficulty Rogue Special Mode None Game No. 22 Rogue 22 Adventurer 0 Explorer 0 Win Type - Total 0 Types 0/0/0/0/0/0/0/0/0 Lore% 13 Gallery% 21 Achievement% 19 Wizard Run 0 Options --------- Layout 0 ASCII 1 Keyboard 1 Movement Vi Keybinds 0 Fullscreen 1 Font 20/SmallcapsGlow Map View 66x50 Zoom Use 0% Tactical HUD 1 Map Filters NONE Filters NONE Steam 1 RUN: 299dbd4c-71b4-4f2b-b7d5-77f1a0f64261